{"text_format":"1","workbook":"xlsx","n_sheets":3,"sheets":["CAR ","CAR_adatlap","Mellékletek_NYOMTATNI"],"not_rendered":{"charts":0,"images":8,"macros":1,"external_links":0,"defined_names":1,"comments":1,"pivot_tables":0},"unopened":[],"bounds":{"document_bytes":16777216,"sheet_cells":100000,"rows_first":2000,"rows_last":500,"rows_between":2000,"halvings":0,"cell_chars":16384,"cell_head_chars":4096},"cells_cut":0,"cells_raw":0,"read":"whole","date_system":"1900"}

{"sheet":"CAR ","index":0,"n_rows":225,"n_cols":12,"rows_kept":225,"cut":false,"hidden":false,"merged":[[13,5,13,8],[38,6,38,9],[120,1,120,4],[112,8,112,9],[75,3,75,8],[18,5,18,8],[19,5,19,8],[5,0,5,9],[6,0,6,9],[8,5,8,6],[70,6,70,7],[71,6,71,7],[10,5,10,8],[11,5,11,8],[23,5,23,8],[34,5,34,8],[33,5,33,8],[15,5,15,7],[16,5,16,7],[20,5,20,8],[21,5,21,8],[22,5,22,8],[12,5,12,8],[223,6,223,7],[220,3,220,4],[224,6,224,7],[119,1,119,9],[136,1,138,9],[140,1,146,9],[156,2,157,9],[215,6,215,7],[158,2,162,9],[163,2,164,9],[133,8,133,9],[216,2,219,9],[131,5,131,7],[134,0,135,9],[130,1,130,4],[132,8,132,9],[148,2,148,9],[149,2,149,9],[150,2,150,9],[151,2,151,9],[155,2,155,9]]}
[]
[]
[]
[]
[]
["CSALÁDI ÉPÍTÉS–SZERELÉS BIZTOSÍTÁS (CAR) II."]
["DÍJTÁJÉKOZTATÓ"]
[]
[null,null,null,null,null,"Hatályos: 2023. október 1-től"]
[]
[null,"SZERZŐDŐ NEVE:"]
[null,"SZERZŐDŐ CÍME:"]
[null,"ANYJA NEVE:"]
[null,"SZÜLETÉSI HELY, IDŐ:"]
[]
[null,"BIZTOSÍTOTTAK:",null,null,null,{"$f":"+F11","v":0},null,null,",mint Megrendelő"]
[null,null,null,null,null,"Kérjük megadni!  -lásd adatlap-",null,null,",mint Fővállalkozó"]
[null,null,null,null,null,"a Fővállalkozónak jelen projektre szerződött alvállalkozói"]
[null,"ZÁLOGJOGOSULT:"]
[]
[null,"HITELSZERZŐDÉS FAJTÁJA:"]
[null,"HITELSZERZŐDÉS SZÁMA:"]
[null,"ZÁLOGJOGOSULT IDŐSZAK KEZDETE:"]
[null,"ZÁLOGJOGOSULT IDŐSZAK VÉGE:"]
[null,"FELTÉTEL:",null,null,null,"Alfa Családi Építés-Szerelés Biztosítás (CS-CAR II-SZ-170701) "]
[]
[]
[null,"KOCKÁZATVISELÉS KEZDETE:",null,null,null,{"$f":"+TODAY()+1","v":"2023-09-28"},"0.00 óra"]
[null,null,null,null,null,"de legkorábban az aláírt ajánlat Biztosítóhoz történő beérkezését "]
[null,null,null,null,null,"követő nap 0.00 órája"]
[]
[null,"KOCKÁZATVISELÉS VÉGE:",null,null,null,"2024-09-30","24.00 óra"]
[null,"ÉPÍTÉSI MUNKA MEGNEVEZÉSE:",null,null,null,"új építés"]
[null,"KOCKÁZATVISELÉS HELYE:"]
[null,"DÍJFIZETÉS ÜTEMEZÉSE:",null,null,null,{"$f":"IF(H112<100000,\"egyösszegű\",\"két részletben\")","v":"két részletben"}]
[null,"CSOK IGÉNYBEVÉTEL:",null,null,null,"nem"]
[null,"ÁFA VISSZAIGÉNYLÉS",null,null,null,"nem"]
[null,"FELELŐS MŰSZAKI VEZETŐ:",null,null,null,"nem"]
[null,"ÉPÜLET KÉSZÜLTSÉGI SZINT:",null,null,null,0,{"$f":"IF(F39=0,\" \",\"Károkkal kapcsolatos nyilatkozatot kitölteni!\")","v":" "}]
[null,"I. FEJEZET ( DOLOGI KÁROK)"]
[]
[null,"1.","Építési teljesítés( 1.a ):"]
[null,null,"( A végleges és ideiglenes építési teljesítés összege beleértve "]
[null,null,"  az összes beépítésre kerülő anyagot )",null,null,null,null,null,{"$f":"+I45","v":85000},"eFt"]
[null,null,null,"1.a.",{"$f":"+IF(F37=\"nem\",\"vállalási díj (ÁFA-val):\",\"vállalási díj (ÁFA nélkül):\")","v":"vállalási díj (ÁFA-val):"},null,null,null,85000,"eFt"]
[]
[null,"2.","Káreseménnyel kapcsolatos többletköltségek",null,null,null,null,null,{"$f":"+I45*0.1","v":8500},"eFt"]
[null,null,null,null,null,null,null,"BIZTOSÍTÁSI ÖSSZEG ( DÍJSZÁMÍTÁS ALAPJA) ÖSSZESEN:",{"$f":"+I47+I44","v":93500},"eFt"]
[]
[null,null,"Önrészesedés (/kár, levonásos):",null,null,null,{"$f":"IF(F38=\"igen\",\"10%,de minimum 100 000 Ft\",\"10%,de minimum 500 000 Ft\")","v":"10%,de minimum 500 000 Ft"}]
[]
[null,"II. FEJEZET ( FELELŐSSÉGI KÁROK )"]
[]
[null,null,"Kártérítési limit:",null,null,"eFt/kár","eFt/időszak"]
[null,null,null,null,null,15000,{"$f":"+F55","v":15000}]
[]
[null,null,"Önrészesedés (Ft/kár, levonásos):",null,null,"10%,de minimum",{"$f":"IF(F38=\"igen\",100000,500000)","v":500000}]
[]
[]
[]
[null,null,null,"A kártérítési limit a felelősségi fedezetre valamint az összes kapcsolódó záradékra összevontan érvényes."]
[]
[null,"STANDARD ZÁRADÉKOK"]
[null,null,null,"002.","Keresztfelelősség"]
[]
[null,null,null,null,null,"Kártérítési limit:","a II. fejezet limitjével közös, kombinált"]
[null,null,null,null,null,"Önrészesedés:","a II. fejezettel megegyezően"]
[]
[null,null,null,"004.","Biztosítási időszak kiterjesztése"]
[]
[null,null,null,null,null,"Szavatossági munkák tartamának kezdete:",{"$f":"F32+1","v":"2024-10-01"}]
[null,null,null,null,null,"Szavatossági munkák tartamának vége:",{"$f":"F32+365","v":"2025-09-30"}]
[null,null,null,null,null,"Önrészesedés:","I . Fejezettel megegyezően "]
[null,null,null,null,null,"Kártérítési limit:",5000,"eFt /kár"]
[null,null,null,null,null,null,{"$f":"G74","v":5000},"eFt /időszak"]
[null,null,null,"Amennyiben ügyfél bejelentése alapján - a kockázatviselés vége változik - a szavatossági idő kezdetének dátuma igazodik az ügyfél bejelentés dátumához."]
[null,null,null,"008.","Földrengésveszélyes övezetekben létesülő építményekre vonatkozó külön kikötés"]
[]
[null,null,null,"102.","Földkábelek, csővezetékek és egyéb berendezések külön feltételei"]
[]
[null,null,null,null,"Önrészesedés:  "]
[null,null,null,"a)","a helyszínrajzon vagy közműtérképen pontosan feltüntetett vezetékek és berendezések"]
[null,null,null,null,"esetében a kár:","20 %-a, de minimum a II. Fejezet alap-önrészesedése"]
[null,null,null,"b)","a helyszínrajzon vagy közműtérképen nem, vagy pontatlanul feltüntetett vezetékek és "]
[null,null,null,null,"berendezések esetében a kár:","10 %-a, de minimum a II. Fejezet alap-önrészesedése"]
[]
[null,null,null,"109.","Építőanyagok tárolására vonatkozó kikötés"]
[]
[null,null,null,"110.","Csapadékvíz, magas vízállás és árvíz elleni biztonsági intézkedésekre vonatkozó külön feltételek"]
[null,null,null,null,"A biztosító kizárólag akkor téríti meg a csapadék következtében keletkezett károkat, ha a csapadék "]
[null,null,null,null,"nagy mennyiségű (min. 27 mm/24 óra) vagy nagy intenzitású (min. 0,5 mm/perc) volt. "]
[]
[null,null,null,"112.","Tűzoltóberendezésekre vonatkozó külön feltételek"]
[]
[null,null,null,null,null,"Raktáregységenként tárolható max. érték:",3000,"eFt"]
[]
[null,"SPECIÁLIS ZÁRADÉKOK"]
[]
[null,null,"-","Csapadékhatás"]
[null,null,null,"A fedezetből ki vannak zárva mindennemű csapadékhatással összefüggésben bekövetkező közvetlen és "]
[null,null,null,"következményi károk."]
[null,null,null,"Ezen kizárás kizárólag azon károkra vonatkozik, amely:"]
[null,null,null,"- a héjazat teljes vagy részleges megbontásával  és a nem elégséges ideiglenes fedéssel "]
[null,null,null,"  összefüggésben keletkezett, és/vagy"]
[null,null,null,"- a még be nem épített építőanyagokat érte."]
[null,null,null,"Elégséges ideiglenes lefedésnek minősül az, ha az megfelelő vastagságú erre a célra készült ipari fóliával "]
[null,null,null,"készült,   a lefedés alól eltávolították az építési törmeléket illetve a beépítésre váró anyagot, továbbá "]
[null,null,null,"gondoskodnak az összegyűlő víz elvezetéséről. A szélhatás ellen 1-1,5 m es sávokban és a széleken "]
[null,null,null,"körkörösen történő terheléssel védett. ",null,null,null,null,null,null,"díjtétel"]
[null,null,null,null,null,null,null,null,null,null,1.8,"I.f"]
[null,null,null,null,null,null,null,null,null,null,{"$f":"+IF(F55=10000,0.45,IF(F55=15000,0.65,0.35))","v":0.65},"II.f"]
[null,null,null,null,null,null,"TELJES BIZTOSÍTÁSI DÍJ:",{"$f":"IF(+K112*I48<50000,50000,+K112*I48)","v":229075.00000000003}," / időszak",null,{"$f":"+K111+K110","v":2.4500000000000002}]
[null,null,null,null,null,null," FIZETENDŐ DÍJ:",{"$f":"IF(H112>99999,H112/2,H112)","v":114537.50000000001},{"$f":"IF(H112<100000,\"egyösszegű\",\"két alkalommal\")","v":"két alkalommal"}]
[null,{"$f":"IF(H112>100000,\"A második díjrészlet a kötvényesítést követő 180. napon esedékes.\",\" \")","v":"A második díjrészlet a kötvényesítést követő 180. napon esedékes."}]
[null,"Az önrészek mindig levonásra kerülnek a kárból!"]
[null,"A jelen tájékoztató szerződéskötési kényszert egyik félre sem ró, az abban foglaltak 30 napig érvényesek."]
[]
[null,"A szabályzatokban és a szerződésben nem rögzített kérdésekben a Polgári Törvénykönyv előírásai az irányadók"]
[]
[null,"Díjajánlatunk elfogadása esetén az elfogadott díjajánlattal egyidőben kérjük a mellékelt A-06 és A-29 jelű, szerződő által aláírt nyilatkozatokat is a Biztosítóhoz eljuttatni!"]
[null,"Mellékletek: -klikk ide a nyomtatáshoz-"]
[null,null,null,"Alfa Családi Építés-Szerelés Biztosítás (CS-CAR II-SZ-170701) "]
[null,null,null,"A-06 Nyilatkozat"]
[null,null,null,"A-29 Nyilatkozat, "]
[null,null,null,"CAR_adatlap_Fő- és alvállalkozók adatairól"]
[null,null,null,"1. sz. függelék (VV-PL-231001-230823)"]
[null,null,null,"Zálogkötelezetti nyilatkozat"]
[null,null,null,"Díjtájékoztató és Ajánlat"]
[null,null,null,"Károkkal kapcsolatos ügyfélnyilatkozat"]
[]
[null,"Díjtájékoztató kelte:",null,null,null,{"$f":"TODAY()","v":"2023-09-27"}]
[null,null,null,"Biztosítás közveítő, tanácsadó neve:",null,"XY"]
[null,null,null,"Alfa dolgozói kód:"]
[]
["AJÁNLAT"]
[]
[null,"A Biztosító által kiadott, és az általunk tett biztosítás összegekkel és kártérítési limitekkel elfogadott díjtájékoztató alapján az alábbi ajánlatot tesszük:\nKérjük a fenti kockázatviselési dátummal, a fedezetigazoló dokumentumot (kötvényt) kiállítani!\n "]
[]
[]
[]
[null,"A Szerződő által adott ajánlat feldolgozásában, a biztosítási kötvény és a számla kiállításában illetékes szervezeti egység:\nAlfa Vienna Insurance Group Biztosító Zrt.\nCorporate Üzletág Adminisztráció\n1091 Budapest, Üllői út 1.\nPostacím: 1368 Budapest, Pf.: 245\nFax: 06 1 476 56 56\nemail: vagyonadmin@alfa.hu\n"]
[]
[]
[]
[]
[]
[]
[null,"Mint ajánlattevő"]
[null,"-","a Ptk. 6:64.§ (1) bekezdése alapján az ajánlat elfogadására 30 napos határidőt állapítunk meg;"]
[null,"-","ezen idő alatt a hatályossá vált ajánlatot a 6:65.§ (4) bekezdése értelmében nem vonhatjuk vissza;"]
[null,"-","tudomásul vesszük, hogy az ajánlattétel napjától számítva a biztosítónak 30 nap áll rendelkezésére a kockázat-elbírálásra;"]
[null,"-","tudomásul vesszük továbbá, hogy az ajánlat elutasítása esetén a biztosító nem visel kockázatot. "]
[]
[null,"Mint Szerződő tudomásul vesszük, hogy:"]
[null,"-","amennyiben a Szerződő adataiban változás áll be, azt öt napon belül írásban bejelentem a Biztosító felé."]
[null,"-","a szabályzatokban és a szerződésben nem rögzített kérdésekben a Polgári Törvénykönyv előírásai az irányadók"]
[null,"-","jelen ajánlattal együtt a mellékelt A-06-as és A-29-es jelű, valamint a VV-PL-231001-230823 jelű Szerződő által aláírt nyilatkozatokat, (illetve alkuszi kötés esetén az alkuszi meghatalmazást) is be kell nyújtani a Biztosítóhoz! Ezek hiányában a Biztosító az ajánlatot nem fogadja el, az elutasításra kerül és a Biztosító kockázatot nem visel."]
[]
[null,"-","A Biztosító a 2014. évi LXXXVIII. törvényben (Bit.). és a jelen szerződésben foglalt felhatalmazás alapján, az általa szervezett veszélyközösség érdekeinek megóvása érdekében -a jogszabályokban foglalt vagy szerződésben vállalt kötelezettségeinek teljesítése során a szolgáltatásoknak és szerződésnek megfelelő teljesítése, a biztosítási szerződésekkel kapcsolatos visszaélések megakadályozása céljából- megkereséssel fordulhat más Biztosítóhoz az általa kezelt, a Bit-ben meghatározott ágazatokhoz tartozó szerződésben rögzített adatok részére történő kiadása érdekében. A Biztosító ezen adatokat a Bit-ben meghatározott időtartamon át kezeli. A Szerződő/Biztosított a Biztosító által megkeresés útján megszerzett és kezelt Bit. szerinti adatokról tájékoztatást kérhet."]
[]
[]
[]
[]
[null,"-","a 2014. évi LXXXVIII. törvényben (Bit.) foglaltaknak megfelelően a Biztosítótársaságoknak bejelentési kötelezettségük van a Magyar Nemzeti Bank felé az ún. nagykockázatokról."]
[]
[]
[null,null,"Az ajánlat aláírásával, annak Biztosítóhoz történő benyújtásával"]
[null,null,"a szerződő/biztosított hozzájárul, hogy az Alfa Vienna Insurance Group Biztosító Zrt. (továbbiakban: Biztosító) a"]
[null,null,"biztosítási szerződéseivel kapcsolatos küldeményeit postai kézbesítés helyett a PORTÁL felületén található felhasználói"]
[null,null,"fiókba kézbesítse, a küldemény érkezéséről a szerződő által megadott publikus e-mail címen értesítsen."]
[null,null,"A Szerződő publikus e-mail címe:"]
[]
[null,null,"…………………………………………… @ ……………. . ………"]
[]
[]
[null,null,"Tájékoztatás"]
[null,null,"A szerződő aláírásával hozzájárulását adja ahhoz, hogy az Alfa Vienna Insurance Group Biztosító Zrt. a PORTÁL"]
[null,null,"felületén keresztül biztosítási szerződései megkötésével, kezelésével és esetleges megszüntetésével, szolgáltatási,"]
[null,null,"kárrendezési igényeivel valamint a következő biztosítási időszakra várható díjról elektronikus úton információkat küldjön"]
[null,null,"részére és ebből a célból elérhetőségi adatait kezelje. Nem minősül a szerződő saját e-mail címének a"]
[null,null,"biztosításközvetítő elérhetősége."]
[null,null,"Az elektronikus kommunikáció a Biztosító PORTÁL felületén valósul meg az alábbiak szerint:"]
[null,null,"A szerződő felhasználóként fog szerepelni a PORTÁL felületén. A PORTÁL elérési hivatkozást, a felhasználónevét és"]
[null,null,"jelszavát a nyilatkozaton megadott e-mail címre küldjük ki."]
[null,null,"A már regisztrált felhasználók a PORTÁLT az alábbi hivatkozáson érhetik el:"]
[null,null,"vagyonportal.alfa.hu"]
[null,null,"A szerződő a fenti tájékoztatás ismeretében, a szolgáltatás igénylésével"]
[null,null,"- vállalja, hogy elektronikus postaládáját napirendszerességgel ellenőrzi és tudomásul veszi, hogy az adott"]
[null,null,"küldeményt megérkezettnek kell tekinteni, ha biztosító igazolni tudja az elküldés tényét,"]
[null,null,"- vállalja, hogy amennyiben e-mail címe vagy mobilszáma megváltozik az új e-mail címet vagy mobilszámot a"]
[null,null,"biztosító részére a változást követő 3 munkanapon belül bejelenti, és tudomásul veszi, hogy ennek"]
[null,null,"elmulasztásából eredő károkért a biztosító nem vállal felelősséget,"]
[null,null,"- gondoskodik arról, hogy elektronikus postafiók szolgáltatója a biztosító küldeményeit ne tekintse spam"]
[null,null,"üzenetnek, illetve arról is, hogy a biztosító küldeményeinek fogadására kellő tárhely álljon rendelkezésre,"]
[null,null," tudomásul veszi, hogy a vállalt kötelezettségei elmulasztásából eredő károkért a biztosító nem vállal felelősséget,"]
[null,null,"illetve azt, hogy mulasztása kizárja a biztosító késedelmét,"]
[null,null,"- tudomásul, veszi továbbá, hogy elektronikus postafiókja jelszavának biztonságáért saját maga felel, a jogosulatlan"]
[null,null,"hozzáférésből eredő károkért a biztosító nem vállal felelősséget,"]
[null,null,"- tudomásul veszi, hogy a szolgáltatást lemondani csak cégszerűen aláírva, írásban a biztosítási évfordulóra, azt"]
[null,null,"megelőzően 30 nappal lehet,"]
[null,null,"- tudomásul veszi, hogy a szolgáltatás az erről szóló cégszerűen aláírt, írásbeli kérelem, biztosító általi"]
[null,null,"kézhezvételét követően lép hatályba,"]
[null,null,"- tudomásul veszi, hogy a biztosítási szerződés(ek) felmondása, a biztosítási szerződésben szabályozott"]
[null,null,"évfordulóra szóló szerződésmódosítási javaslat csak nyomtatott formátumban, postai úton kézbesített okirat"]
[null,null,"formájában lehetséges."]
[null,null,"A Szerződő/Biztosított hozzájárul, hogy az Alfa Vienna Insurance Group Biztosító Zrt. (továbbiakban: Biztosító)"]
[null,null,"számára, a Szerződő által megadott telefonszámmal, a biztosítási szerződéseivel kapcsolatos szolgáltatás teljesítésének"]
[null,null,"elősegítéséhez elérhetőségét megadja. A Szerződő telefonszáma:"]
[null,null,"06-...../........-.......-......"]
[null,null,"Ajánlattevőként aláhúzással nyilatkozunk, hogy az általunk választott postázási útvonal (kötvény, számviteli bizonylat"]
[null,null,"és egyéb küldemények címzettje) az alábbi legyen:"]
[null,null,"Közvetítőn, alkuszon keresztül Közvetlenül Szerződő részére"]
[null,null,"Amennyiben nincs rendelkezés a postázási útvonalról, úgy a Biztosító a közvetítőn, alkuszon keresztül fogja postázni a"]
[null,null,"dokumentumokat."]
[]
[null,"Kizárás"]
[null,null,"A Felek egyedileg megállapodtak abban, hogy a Biztosító jelen szerződésében kizárja, és így nem válik a szerződés tartalmává bármely olyan szokás, amelynek alkalmazásában a felek korábbi üzleti kapcsolatukban megegyeztek, és más gyakorlat, amelyet egymás között kialakítottak. Továbbá nem válik a szerződés tartalmává az adott üzletágban a hasonló jellegű szerződés alanyai által széles körben ismert és rendszeresen alkalmazott szokás, amennyiben a jelen szerződés ezzel ellentétes szabályt tartalmaz."]
[]
[]
[]
[null,"Kelt,",null,"város",null,{"$f":"TODAY()","v":"2023-09-27"}]
[]
[]
[]
[null,null,null,null,null,null,"Szerződő aláírása"]

{"sheet":"CAR_adatlap","index":1,"n_rows":57,"n_cols":6,"rows_kept":57,"cut":false,"hidden":false,"merged":[[13,3,13,7],[7,2,7,7],[2,3,2,7],[56,5,56,6],[18,3,18,7],[38,3,38,7],[23,3,23,7],[28,3,28,7],[33,3,33,7],[43,3,43,7],[48,3,48,7],[14,3,14,7],[16,2,16,7],[17,2,17,7],[19,3,19,7],[21,2,21,7],[1,3,1,7],[5,2,5,7],[6,2,6,7],[11,2,11,7],[12,2,12,7],[22,2,22,7],[24,3,24,7],[26,2,26,7],[27,2,27,7],[29,3,29,7],[31,2,31,7],[32,2,32,7],[34,3,34,7],[36,2,36,7],[37,2,37,7],[55,5,55,6],[47,2,47,7],[49,3,49,7],[52,4,52,7],[39,3,39,7],[41,2,41,7],[42,2,42,7],[44,3,44,7],[46,2,46,7],[52,1,52,3]]}
[]
["SZERZŐDŐ NEVE:",null,null,{"$f":"VLOOKUP(A2,'CAR '!B11:I11,5,0)","v":0}]
["SZERZŐDŐ CÍME:",null,null,{"$f":"VLOOKUP(A3,'CAR '!B12:I12,5,0)","v":0}]
[]
["Fővállalkozó adatai"]
[" NEVE:"]
[" CÍME:"]
[" ADÓSZÁMA:"]
["a Fővállalkozónak jelen projektre szerződött alvállalkozói"]
["Alvállalkozók adatai"]
[]
[" NEVE:"]
[" CÍME:"]
[" Alvállakozói tevékenység"]
["ADÓSZÁMA:"]
[]
[" NEVE:"]
[" CÍME:"]
[" Alvállakozói tevékenység"]
["ADÓSZÁMA:"]
[]
[" NEVE:"]
[" CÍME:"]
[" Alvállakozói tevékenység"]
["ADÓSZÁMA:"]
[]
[" NEVE:"]
[" CÍME:"]
[" Alvállakozói tevékenység"]
["ADÓSZÁMA:"]
[]
[" NEVE:"]
[" CÍME:"]
[" Alvállakozói tevékenység"]
["ADÓSZÁMA:"]
[]
[" NEVE:"]
[" CÍME:"]
[" Alvállakozói tevékenység"]
["ADÓSZÁMA:"]
[]
[" NEVE:"]
[" CÍME:"]
[" Alvállakozói tevékenység"]
["ADÓSZÁMA:"]
[]
[" NEVE:"]
[" CÍME:"]
[" Alvállakozói tevékenység"]
["ADÓSZÁMA:"]
[]
[]
["Kelt,",null,null,null,{"$f":"'CAR '!F221","v":"2023-09-27"}]
[]
[]
[]
[null,null,null,null,null,"Szerződő aláírása"]

{"sheet":"Mellékletek_NYOMTATNI","index":2,"n_rows":32,"n_cols":13,"rows_kept":32,"cut":false,"hidden":false,"merged":[[22,4,22,5],[1,0,1,6]]}
["Kötelező kinyomtatni, átadni az ügyfélnek!",null,null,null,null,null,null,null,null,"Mellékletek:"]
["Letöltéshez/nyomtatáshoz Klikk a fájra!"]
[" Családi házakra vonatkozó Építés-Szerelés Biztosítás (C.A.R.) II. feltétel",null,null,null,null,null,null,null,null,"A-06 Nyilatkozat",null,null,"Zálogkötelezetti nyilatkozat"]
[]
[]
[]
[]
[]
[null,null,null,null,null,null,null,null,null,"A-29 Nyilatkozat, ",null,null,"Termékismertető"]
[]
[]
[]
[]
[]
[null,null,null,null,null,null,null,null,null,"1. sz függelék",null,null,"Károkkal kapcsolatos nyilatkozat"]
[]
[]
[]
[]
[]
[]
[]
[null,null,null,null,"Átadandó",null,"Ügyfél","Biztosító"]
["Alfa Családi Építés-Szerelés Biztosítás (C.A.R.) II. szabályzat",null,null,null,null,null,"x"]
["Termékismertető",null,null,null,null,null,"x"]
["A-06 Nyilatkozat",null,null,null,null,null,"x","x"]
["A-29 Nyilatkozat, ",null,null,null,null,null,"x","x"]
["CAR_adatlap_Fő- és alvállalkozók adatairól",null,null,null,null,null,"x","x"]
["1. sz. függelék (VV-PL-231001-230823)",null,null,null,null,null,"x"]
["Zálogkötelezetti nyilatkozat",null,null,null,null,null,"x","x"]
["Díjtájékoztató és Ajánlat",null,null,null,null,null,"x","x"]
["Károkkal kapcsolatos nyilatkozat (megkezdett építkezés esetén)",null,null,null,null,null,"x","x"]